bitfinex-derivatives/quotes_BNBF0:USTF0_20251027
["timestamp","ask_amount","ask_price","bid_price","bid_amount"]
[1761540814469,0.15178511,1147.6,1145.9,0.55862299]
[1761540814769,0.15178511,1147.6,1145.8,1.303]
[1761540814974,0.15178511,1147.6,1145.9,0.55857057]
[1761540815173,0.15178511,1147.6,1145.8,1.303]
[1761540815373,0.15178511,1147.6,1145.9,0.5585199]
[1761540815570,0.15178511,1147.6,1145.8,1.303]
[1761540815770,0.15178511,1147.6,1145.9,0.55851839]
[1761540816073,0.15178511,1147.6,1145.8,1.303]
[1761540816274,0.15178511,1147.6,1145.9,0.55851908]
[1761540816475,0.15178511,1147.6,1145.8,1.303]
[1761540816675,0.15178511,1147.6,1145.9,0.55847133]
[1761540816874,0.15178511,1147.6,1145.8,1.303]
[1761540817072,0.15178511,1147.6,1145.9,0.55847133]
[1761540817277,0.15178511,1147.6,1145.8,1.303]
[1761540817473,0.15178511,1147.6,1145.9,0.55842409]
[1761540817678,0.15178511,1147.6,1145.8,1.303]
[1761540817874,0.15178511,1147.6,1145.9,0.55842384]
[1761540818080,0.15178511,1147.6,1145.8,1.303]
[1761540818375,0.15178511,1147.6,1145.9,0.55840488]
[1761540818576,0.15178511,1147.6,1145.8,1.303]
[1761540818779,0.15178511,1147.6,1145.9,0.55836321]
[1761540818981,0.15178511,1147.6,1145.8,1.303]
[1761540819180,0.15178511,1147.6,1145.9,0.55836321]
[1761540819374,0.15178511,1147.6,1145.8,1.303]
[1761540819580,0.15178511,1147.6,1145.9,0.55830541]
[1761540819879,0.15178511,1147.6,1145.8,1.303]
[1761540820076,0.15178511,1147.6,1145.9,0.55830541]
[1761540820279,0.15178511,1147.6,1145.8,1.303]
[1761540820478,0.15178511,1147.6,1145.9,0.55828567]
[1761540820675,0.15178511,1147.6,1145.8,1.303]
[1761540820879,0.15178511,1147.6,1145.9,0.55828567]
[1761540821176,0.15178511,1147.6,1145.8,1.303]
[1761540821380,0.15178511,1147.6,1145.9,0.55824899]
[1761540821581,0.15178511,1147.6,1145.8,1.303]
[1761540821778,0.15178511,1147.6,1145.9,0.55824589]
[1761540821981,0.15178511,1147.6,1145.8,1.303]
[1761540822180,0.15178511,1147.6,1145.9,0.55824589]
[1761540822376,0.15178511,1147.6,1145.8,1.303]
[1761540822582,0.15178511,1147.6,1145.9,0.55820826]
[1761540822781,0.15178511,1147.6,1145.8,1.303]
[1761540823078,0.15178511,1147.6,1145.9,0.55820515]
[1761540823281,0.15178511,1147.6,1145.8,1.303]
[1761540823482,0.15178511,1147.6,1145.9,0.55817383]
[1761540823779,0.15178511,1147.6,1145.8,1.303]
[1761540823978,0.15178511,1147.6,1145.9,0.55816887]
[1761540824176,0.15178511,1147.6,1145.8,1.303]
[1761540824380,0.15178511,1147.6,1145.9,0.55813403]
[1761540824583,0.15178511,1147.6,1145.8,1.303]
[1761540824783,0.15178511,1147.6,1145.9,0.55813382]
[1761540824981,0.15178511,1147.6,1145.8,1.303]
[1761540825185,0.15178511,1147.6,1145.9,0.55813317]
[1761540825382,0.15178511,1147.6,1145.8,1.303]
[1761540825581,0.15178511,1147.6,1145.9,0.55811365]
[1761540825785,0.15178511,1147.6,1145.8,1.303]
[1761540825986,0.15178511,1147.6,1145.9,0.55811882]
[1761540826185,0.15178511,1147.6,1145.8,1.303]
[1761540829392,0.15178511,1147.6,1145.9,0.55810818]
[1761540829686,0.15178511,1147.6,1145.8,1.303]
[1761540829892,0.15178511,1147.6,1145.9,0.55809247]
[1761540830188,0.15178511,1147.6,1145.8,1.303]
[1761540830387,0.15178511,1147.6,1145.9,0.55805663]
[1761540830585,0.15178511,1147.6,1146.0,0.55805663]
[1761540830790,0.15178511,1147.6,1145.8,1.303]
[1761540830991,0.15178511,1147.6,1145.9,0.55805641]
[1761540831191,0.15178511,1147.6,1146.0,0.55805641]
[1761540831389,0.15178511,1147.6,1145.8,1.303]
[1761540831593,0.15178511,1147.6,1145.9,0.55802748]
[1761540831792,0.15178511,1147.6,1145.8,1.303]
[1761540831793,0.15178511,1147.6,1146.0,0.55802748]
[1761540831992,0.15178511,1147.6,1145.8,1.303]
[1761540832188,0.15178511,1147.6,1145.9,0.55802017]
[1761540832388,0.15178511,1147.6,1146.0,0.55802017]
[1761540832689,0.15178511,1147.6,1145.8,1.303]
[1761540832890,0.15178511,1147.6,1145.9,0.55798856]
[1761540833090,0.15178511,1147.6,1146.0,0.55798856]
[1761540833294,0.15178511,1147.6,1145.8,1.303]
[1761540833495,0.15178511,1147.6,1145.9,0.55796366]
[1761540833790,0.15178511,1147.6,1146.0,0.55796366]
[1761540833994,0.15178511,1147.6,1146.1,0.55796366]
[1761540834196,0.15178511,1147.6,1146.2,0.55796366]
[1761540834391,0.15178511,1147.6,1145.8,1.303]
[1761540834594,0.15178511,1147.6,1145.9,0.55788828]
[1761540834795,0.15178511,1147.6,1146.0,0.55788828]
[1761540834995,0.15178511,1147.6,1146.1,0.55788828]
[1761540835190,0.15178511,1147.6,1146.2,0.55788828]
[1761540835396,0.15178511,1147.6,1145.8,1.303]
[1761540835594,0.15178511,1147.6,1145.9,0.5578445]
[1761540835893,0.15178511,1147.6,1146.0,0.5578445]
[1761540836096,0.15178511,1147.6,1146.1,0.5578445]
[1761540836297,0.15178511,1147.6,1145.8,1.303]
[1761540836496,0.15178511,1147.6,1145.9,0.55780951]
[1761540836696,0.15178511,1147.6,1146.0,0.55780951]
[1761540836895,0.15178511,1147.6,1146.1,0.55780951]
[1761540837094,0.15178511,1147.6,1145.8,1.303]
[1761540837294,0.15178511,1147.6,1145.9,0.55786343]
[1761540837498,0.15178511,1147.6,1146.0,0.55786343]
[1761540837699,0.15178511,1147.6,1146.1,0.55786343]
[1761540837895,0.15178511,1147.6,1145.8,1.303]
[1761540838100,0.15178511,1147.6,1145.9,0.55785036]
[1761540838298,0.15178511,1147.6,1146.0,0.55785036]
[1761540838497,0.15178511,1147.6,1146.1,0.55785036]
[1761540838797,0.15178511,1147.6,1145.8,1.303]
[1761540838997,0.15178511,1147.6,1145.9,0.55786054]
[1761540839198,0.15178511,1147.6,1146.0,0.55786054]
[1761540839401,0.15178511,1147.6,1146.1,0.55786054]
[1761540839604,0.15178511,1147.6,1145.8,1.303]
[1761540839797,0.15178511,1147.6,1145.9,0.557873]
[1761540840001,0.15178511,1147.6,1146.0,0.557873]
[1761540840201,0.15178511,1147.6,1145.8,1.303]
[1761540840401,0.15178511,1147.6,1145.9,0.55788578]
[1761540840597,0.15178511,1147.6,1145.8,1.303]
[1761540840802,0.15178511,1147.6,1145.9,0.55792191]
[1761540841002,0.15178511,1147.6,1145.8,1.303]
[1761540848408,2.15100723,1148.1,1145.8,1.303]
[1761540848607,2.15100723,1149.0,1145.8,1.303]
[1761540848813,0.15182352,1147.3,1145.8,1.303]
[1761540849012,2.15100723,1148.8,1145.8,1.303]
[1761540849309,0.15179107,1147.3,1145.8,1.303]
[1761540849708,2.15100723,1148.9,1145.8,1.303]
[1761540850008,0.15179703,1147.3,1145.8,1.303]
[1761540850208,2.15100723,1148.9,1145.8,1.303]
[1761540850413,0.15179372,1147.3,1145.8,1.303]
[1761540850810,2.15100723,1148.8,1145.8,1.303]
[1761540851012,0.15179372,1147.3,1145.8,1.303]
[1761540851214,2.15100723,1148.8,1145.8,1.303]
[1761540851510,0.15179703,1147.3,1145.8,1.303]
[1761540851910,2.15100723,1148.4,1145.8,1.303]
[1761540852114,0.15179703,1147.3,1145.8,1.303]
[1761540852414,2.15100723,1148.4,1145.8,1.303]
[1761540852615,0.15181027,1147.3,1145.8,1.303]
[1761540852917,2.15100723,1148.1,1145.8,1.303]
[1761540853217,0.15182021,1147.3,1145.8,1.303]
[1761540853411,2.15100723,1148.1,1145.8,1.303]
[1761540853910,0.15182021,1147.3,1145.8,1.303]
[1761540854112,2.15100723,1148.1,1145.8,1.303]
[1761540854314,0.15182021,1147.6,1145.8,1.303]
[1761540860318,0.15182021,1147.6,1145.9,0.55805512]
[1761540860517,0.15182021,1147.6,1145.8,1.303]
[1761540860715,0.15182021,1147.6,1145.9,0.55805523]
[1761540861015,0.15182021,1147.6,1145.8,1.303]
[1761540861612,0.15182021,1147.6,1145.9,0.55804756]
[1761540861816,0.15182021,1147.6,1145.8,1.303]
[1761540862015,0.15182021,1147.6,1145.9,0.55804756]
[1761540862216,0.15182021,1147.6,1145.8,1.303]
[1761540862415,0.15182021,1147.6,1145.9,0.55803651]
[1761540862614,0.15182021,1147.6,1145.8,1.303]
[1761540862814,0.15182021,1147.6,1145.9,0.55803133]
[1761540863014,0.15182021,1147.6,1145.8,1.303]
[1761540863216,0.15182021,1147.6,1145.9,0.55803133]
[1761540863412,0.15182021,1147.6,1145.8,1.303]
[1761540863615,0.15182021,1147.6,1145.9,0.55801423]
[1761540863816,0.15182021,1147.6,1145.8,1.303]
[1761540864121,0.15182021,1147.6,1145.9,0.55801423]
[1761540864320,0.15182021,1147.6,1145.8,1.303]
[1761540864516,0.15182021,1147.6,1145.9,0.55800254]
[1761540864717,0.15182021,1147.6,1145.8,1.303]
[1761540864920,0.15182021,1147.6,1145.9,0.55779615]
[1761540865120,2.15100723,1147.9,1146.0,0.55774581]
[1761540865321,0.15179173,1147.8,1146.1,0.55774581]
[1761540865521,0.15179173,1147.8,1145.8,1.303]
[1761540865821,0.15179173,1147.8,1145.9,0.55766191]
[1761540866018,0.15179173,1147.8,1146.0,0.55766191]
[1761540866221,0.15179173,1147.8,1146.1,0.55766191]
[1761540866421,0.15179173,1147.8,1146.2,0.55766191]
[1761540866622,0.15179173,1147.8,1145.8,1.303]
[1761540866821,0.15179173,1147.8,1145.9,0.5575803]
[1761540867021,0.15179173,1147.8,1146.0,0.5575803]
[1761540867221,0.15179173,1147.8,1146.1,0.5575803]
[1761540867422,0.15179173,1147.8,1146.2,0.5575803]
[1761540867622,0.15179173,1147.8,1145.8,1.303]
[1761540867822,0.15179173,1147.8,1145.9,0.55749576]
[1761540868122,0.15179173,1147.8,1146.0,0.55749576]
[1761540868421,0.15179173,1147.8,1146.1,0.55749576]
[1761540868619,0.15179173,1147.8,1146.2,0.55749576]
[1761540868818,0.15179173,1147.8,1145.8,1.303]
[1761540869018,0.15179173,1147.8,1145.9,0.55741721]
[1761540869217,0.15179173,1147.8,1146.0,0.55741721]
[1761540869520,0.15179173,1147.8,1146.1,0.55741721]
[1761540869823,0.15179173,1147.8,1146.2,0.55741721]
[1761540870022,0.15179173,1147.8,1145.6,0.65151674]
[1761540870223,0.15179173,1147.8,1145.7,0.55733975]
[1761540870523,0.15179173,1147.8,1145.8,0.55733975]
[1761540870721,0.15179173,1147.8,1145.9,0.55733975]
[1761540870922,0.15179173,1147.8,1146.0,0.55733975]
[1761540871120,0.15179173,1147.8,1146.1,0.55733975]
[1761540871320,0.15179173,1147.8,1145.5,0.65151674]
[1761540871524,0.15179173,1147.8,1145.6,0.55719791]
[1761540871723,0.15179173,1147.8,1145.7,0.55719791]
[1761540871923,0.15179173,1147.8,1145.8,0.55719791]
[1761540872125,0.15179173,1147.8,1145.9,2.18419791]
[1761540872323,0.15179173,1147.8,1146.0,0.55719791]
[1761540872622,0.15179173,1147.8,1146.1,0.55719791]
[1761540872826,0.15179173,1147.8,1145.9,1.627]
[1761540873025,0.15179173,1147.8,1146.0,0.55714477]
[1761540873221,0.15179173,1147.8,1146.1,0.55714477]
[1761540873520,0.15179173,1147.8,1145.9,1.627]
[1761540873722,0.15179173,1147.8,1146.0,0.5570875]
[1761540873922,0.15179173,1147.8,1146.1,0.5570875]
[1761540874123,0.15179173,1147.8,1145.9,1.627]
[1761540874322,0.15179173,1147.8,1146.0,0.5570586]
[1761540874525,0.15179173,1147.8,1146.1,0.5570586]
[1761540874725,0.15179173,1147.8,1145.9,1.627]
[1761540874927,0.15179173,1147.8,1146.0,0.55703265]
[1761540875127,0.15179173,1147.8,1146.1,0.55703265]
[1761540875427,0.15179173,1147.8,1145.9,1.627]
[1761540875622,0.15179173,1147.8,1146.0,0.55698033]
[1761540875826,0.15179173,1147.8,1146.1,0.55698033]
[1761540876026,0.15179173,1147.8,1145.9,1.627]
[1761540876223,0.15179173,1147.8,1146.0,0.55698033]
[1761540876425,0.15179173,1147.8,1145.9,1.627]
[1761540876625,0.15179173,1147.8,1146.0,0.55693029]
[1761540876828,0.15179173,1147.8,1145.9,1.627]
[1761540877030,0.15179173,1147.8,1146.0,0.55693029]
[1761540877327,0.15179173,1147.8,1145.9,1.627]
[1761540877526,0.15179173,1147.8,1146.0,0.55688245]
[1761540877728,0.15179173,1147.8,1145.9,1.627]
[1761540877927,0.15179173,1147.8,1146.0,0.55688246]
[1761540878225,0.15179173,1147.8,1145.9,1.627]
[1761540878431,0.15179173,1147.8,1146.0,0.55683674]
[1761540878629,0.15179173,1147.8,1145.9,1.627]
[1761540878831,0.15179173,1147.8,1146.0,0.55682826]
[1761540879031,0.15179173,1147.8,1145.9,1.627]
[1761540879232,0.15179173,1147.8,1146.0,0.5568274]
[1761540879429,0.15179173,1147.8,1145.9,1.627]
[1761540879629,0.15179173,1147.8,1146.0,0.55677197]
[1761540879831,0.15179173,1147.8,1145.9,1.627]
[1761540880029,0.15179173,1147.8,1146.0,0.55677132]
[1761540880232,0.15179173,1147.8,1145.9,1.627]
[1761540880433,0.15179173,1147.8,1146.0,0.55672203]
[1761540880630,0.15179173,1147.8,1146.1,0.55672203]
[1761540880834,0.15179173,1147.8,1146.2,0.55672203]
[1761540881035,0.15179173,1147.8,1145.9,1.627]
[1761540881234,0.15179173,1147.8,1146.0,0.55672203]
[1761540881432,0.15179173,1147.8,1146.1,0.55672203]
[1761540881636,0.15179173,1147.8,1146.2,0.55672203]
[1761540881934,0.15179173,1147.8,1145.9,1.627]
[1761540882234,0.15179173,1147.8,1146.0,0.55667834]
[1761540882432,0.15179173,1147.8,1146.1,0.55667834]
[1761540882639,0.15179173,1147.8,1146.2,0.55667834]
[1761540882837,0.15179173,1147.8,1145.9,1.627]
[1761540883037,0.15179173,1147.8,1146.0,0.5566254]
[1761540883237,0.15179173,1147.8,1145.9,1.627]
[1761540883238,2.15100723,1149.2,1146.1,0.5566254]
[1761540883436,0.15174341,1148.1,1146.2,0.5566254]
[1761540883636,2.15100723,1149.2,1145.9,1.627]
[1761540883838,2.15100723,1149.2,1146.0,0.55654134]
[1761540884036,0.15172687,1148.1,1146.1,0.55654134]
[1761540884337,2.15100723,1149.3,1146.2,0.55654134]
[1761540884637,0.15173018,1148.1,1145.9,1.627]
[1761540884837,2.15100723,1149.3,1146.0,0.55648119]
[1761540885136,0.15173349,1148.1,1146.1,0.55648119]
[1761540885335,2.15100723,1149.3,1146.2,0.55648119]
[1761540885536,0.15172687,1148.1,1145.9,1.627]
[1761540885836,2.15100723,1149.3,1146.0,0.55642471]
[1761540886040,2.15100723,1148.8,1146.1,0.55642471]
[1761540886336,0.15173349,1148.1,1146.2,0.55642471]
[1761540886637,0.15173349,1148.1,1146.3,0.55642471]
[1761540886841,0.15173349,1148.1,1145.9,1.627]
[1761540887039,0.15173349,1148.1,1146.0,0.55630936]
[1761540887240,0.15173349,1148.1,1146.1,0.55630936]
[1761540887439,0.15173349,1148.1,1146.2,0.55630936]
[1761540887637,0.15173349,1148.1,1146.3,0.55630936]
[1761540887937,0.15173349,1148.1,1145.9,1.627]
[1761540888240,0.15173349,1148.1,1146.0,0.55623909]
[1761540888437,0.15173349,1148.1,1146.1,0.55623909]
[1761540888640,0.15173349,1148.1,1146.2,0.55623909]
[1761540888835,0.15173349,1148.1,1146.3,0.55623909]
[1761540889041,0.15173349,1148.1,1145.9,1.627]
[1761540889237,0.15173349,1148.1,1146.0,0.55617512]
[1761540889436,0.15173349,1148.1,1146.1,0.55617512]
[1761540889641,0.15173349,1148.1,1146.2,0.55617512]
[1761540889839,0.15173349,1148.1,1145.9,1.627]
[1761540890138,0.15173349,1148.1,1146.0,0.55611455]
[1761540890342,0.15173349,1148.1,1146.1,0.55611455]
[1761540890542,0.15173349,1148.1,1146.2,0.55611455]
[1761540890742,0.15173349,1148.1,1145.9,1.627]
[1761540891039,0.15173349,1148.1,1146.0,0.55604788]
[1761540891240,0.15173349,1148.1,1146.1,0.55604788]
[1761540891438,0.15173349,1148.1,1146.2,0.55604788]
[1761540891640,0.15173349,1148.1,1145.9,1.627]
[1761540891942,0.15173349,1148.1,1146.0,0.55598447]
[1761540892141,0.15173349,1148.1,1146.1,0.55598447]
[1761540892340,0.15173349,1148.1,1145.9,1.627]
[1761540895146,0.15173349,1148.1,1145.0,0.65151674]
[1761540895350,0.15173349,1148.1,1145.1,0.55629683]
[1761540895549,0.15173349,1148.1,1145.2,0.55629683]
[1761540895746,0.15173349,1148.1,1145.3,0.55629683]
[1761540896044,0.15173349,1148.1,1145.4,0.55629683]
[1761540896249,0.15173349,1148.1,1145.5,0.55629683]
[1761540896444,0.15173349,1148.1,1145.0,0.65151674]
[1761540896649,0.15173349,1148.1,1145.1,0.55625735]
[1761540896848,0.15173349,1148.1,1145.2,0.55625735]
[1761540897145,0.15173349,1148.1,1145.3,0.55625735]
[1761540897349,0.15173349,1148.1,1145.4,0.55625735]
[1761540897652,0.15173349,1148.1,1145.5,0.55625735]
[1761540897850,0.15173349,1148.1,1145.0,0.65151674]
[1761540898146,0.15173349,1148.1,1145.1,0.55621973]
[1761540898352,0.15173349,1148.1,1145.2,0.55621973]
[1761540898553,0.15173349,1148.1,1145.3,0.55621973]
[1761540898751,0.15173349,1148.1,1145.4,0.55621973]
[1761540898955,0.15173349,1148.1,1145.5,0.55621973]
[1761540899153,0.15173349,1148.1,1145.6,0.55621973]
[1761540899350,0.15173349,1148.1,1145.2,1.481]
[1761540899653,0.15173349,1148.1,1145.3,0.55614545]
[1761540899951,0.15173349,1148.1,1145.4,0.55614545]
[1761540900154,0.15173349,1148.1,1145.5,0.55614545]
[1761540900454,0.15173349,1148.1,1145.6,0.55614545]
[1761540900651,0.15173349,1148.1,1145.2,1.481]
[1761540900855,0.15173349,1148.1,1145.3,0.55614588]
[1761540901054,0.15173349,1148.1,1145.4,0.55614588]
[1761540901255,0.15173349,1148.1,1145.5,0.55614588]
[1761540901559,0.15173349,1148.1,1145.2,1.481]
[1761540901856,0.15173349,1148.1,1145.3,0.55635711]
[1761540902053,0.15173349,1148.1,1145.4,0.55635711]
[1761540902356,0.15173349,1148.1,1145.5,0.55635711]
[1761540902554,0.15173349,1148.1,1145.2,1.481]
[1761540902755,0.15173349,1148.1,1145.3,0.55647858]
[1761540902953,0.15173349,1148.1,1145.4,0.55647858]
[1761540903158,0.15173349,1148.1,1145.5,0.55647858]
[1761540903355,0.15173349,1148.1,1145.2,1.481]
[1761540903559,0.15173349,1148.1,1145.3,0.55653691]
[1761540903757,0.15173349,1148.1,1145.4,0.55653691]
[1761540903960,0.15173349,1148.1,1145.5,0.55653691]
[1761540904260,2.15100723,1148.0,1145.2,1.481]
[1761540904462,2.15100723,1148.0,1145.3,0.55659641]
[1761540904657,0.15173349,1148.1,1145.2,1.481]
[1761540904658,2.30274072,1148.1,1145.4,0.55659641]
[1761540904858,2.30274072,1148.1,1145.5,0.55659641]
[1761540905061,2.30274072,1148.1,1145.2,1.481]
[1761540905263,2.30274072,1148.1,1145.3,0.55659049]
[1761540905561,2.30274072,1148.1,1145.4,0.55659049]
[1761540905756,2.30274072,1148.1,1145.5,0.55659049]
[1761540906057,2.30274072,1148.1,1145.2,1.481]
[1761540906261,0.15173349,1148.1,1145.3,0.55665729]
[1761540906459,0.15173349,1148.1,1145.4,0.55665729]
[1761540906663,0.15173349,1148.1,1145.5,0.55665729]
[1761540906960,0.15173349,1148.1,1145.2,1.481]
[1761540907164,2.30274072,1148.1,1145.3,0.55671951]
[1761540907360,2.30274072,1148.1,1145.4,0.55671951]
[1761540907559,2.30274072,1148.1,1145.5,0.55671951]
[1761540907766,2.30274072,1148.1,1145.2,1.481]
[1761540907964,2.30274072,1148.1,1145.3,0.55680128]
[1761540908159,2.30274072,1148.1,1145.4,0.55680128]
[1761540908459,2.30274072,1148.1,1145.5,0.55680128]
[1761540908659,2.30274072,1148.1,1145.2,1.481]
[1761540908961,2.30274072,1148.1,1145.3,0.55687861]
[1761540909161,2.30274072,1148.1,1145.4,0.55687861]
[1761540909366,2.15100723,1148.0,1145.5,0.55687861]
[1761540909574,2.15100723,1148.0,1145.2,1.481]
[1761540909774,2.15100723,1148.0,1145.3,0.55685264]
[1761540909974,2.15100723,1148.0,1145.4,0.55685264]
[1761540910174,2.15100723,1148.0,1145.5,0.55685264]
[1761540910374,2.15100723,1148.0,1145.2,1.481]
[1761540910576,2.15100723,1148.0,1145.3,0.55681793]
[1761540910876,2.15100723,1148.0,1145.4,0.55681793]
[1761540911075,2.15100723,1148.0,1145.2,1.481]
[1761540911372,2.15100723,1148.0,1145.3,0.55681793]
[1761540911575,2.15100723,1148.0,1145.4,0.55681793]
[1761540911777,2.15100723,1148.0,1145.2,1.481]
[1761540911978,2.15100723,1148.0,1145.3,0.55680067]
[1761540912177,2.15100723,1148.0,1145.4,0.55680067]
[1761540912378,2.15100723,1148.0,1145.2,1.481]
[1761540912578,2.15100723,1148.0,1145.3,0.55676919]
[1761540912777,2.15100723,1148.0,1145.4,0.55676919]
[1761540913074,2.15100723,1148.0,1145.2,1.481]
[1761540913277,2.15100723,1148.0,1145.3,0.55676876]
[1761540913477,2.15100723,1148.0,1145.2,1.481]
[1761540913478,2.15100723,1148.0,1145.4,0.55676876]
[1761540913672,2.15100723,1148.0,1145.2,1.481]
[1761540913976,2.15100723,1148.0,1145.3,0.55673792]
[1761540914175,2.15100723,1148.0,1145.4,0.55673792]
[1761540914377,2.15100723,1148.0,1145.2,1.481]
[1761540914577,2.15100723,1148.0,1145.3,0.55670769]
[1761540914773,2.15100723,1148.0,1145.4,0.55670769]
[1761540914976,2.15100723,1148.0,1145.2,1.481]
[1761540915178,2.15100723,1148.0,1145.3,0.55670769]
[1761540915478,2.15100723,1148.0,1145.4,0.55670769]
[1761540915676,2.15100723,1148.0,1145.2,1.481]
[1761540915877,2.15100723,1148.0,1145.3,0.55667677]
[1761540916078,2.15100723,1148.0,1145.4,0.55667677]
[1761540916378,2.15100723,1148.0,1145.2,1.481]
[1761540916579,2.15100723,1148.0,1145.3,0.55664947]
[1761540916779,2.15100723,1148.0,1145.4,0.55664947]
[1761540917079,2.15100723,1148.0,1145.2,1.481]
[1761540917277,2.15100723,1148.0,1145.3,0.55664925]
[1761540917475,2.15100723,1148.0,1145.4,0.55664925]
[1761540917676,2.15100723,1148.0,1145.2,1.481]
[1761540917875,2.15100723,1148.0,1145.3,0.55662132]
[1761540918076,0.15173349,1148.1,1145.4,0.55662132]
[1761540918274,0.15173349,1148.1,1145.2,1.481]
[1761540918479,0.15173349,1148.1,1145.3,0.55658729]
[1761540918679,0.15173349,1148.1,1145.4,0.55658729]
[1761540918879,0.15173349,1148.1,1145.2,1.481]
[1761540919080,0.15173349,1148.1,1145.3,0.55658729]
[1761540919277,0.15173349,1148.1,1145.4,0.55658729]
[1761540919580,0.15173349,1148.1,1145.2,1.481]
[1761540919781,0.15173349,1148.1,1145.3,0.55655006]
[1761540919981,0.15173349,1148.1,1145.4,0.55655006]
[1761540920179,0.15173349,1148.1,1145.2,1.481]
[1761540920384,0.15173349,1148.1,1145.3,0.55654866]
[1761540920680,0.15173349,1148.1,1145.4,0.55654866]
[1761540920884,0.15173349,1148.1,1145.5,0.55654866]
[1761540921085,0.15173349,1148.1,1145.2,1.481]
[1761540921385,0.15173349,1148.1,1145.3,0.55650686]
[1761540921584,0.15173349,1148.1,1145.4,0.55650686]
[1761540921784,0.15173349,1148.1,1145.5,0.55650686]
[1761540922082,0.15173349,1148.1,1145.2,1.481]
[1761540922283,0.15173349,1148.1,1145.3,0.55647351]
[1761540922480,0.15173349,1148.1,1145.4,0.55647351]
[1761540922684,0.15173349,1148.1,1145.5,0.55647351]
[1761540922884,0.15173349,1148.1,1145.2,1.481]
[1761540923085,0.15173349,1148.1,1145.3,0.55644146]
[1761540923285,0.15173349,1148.1,1145.4,0.55644146]
[1761540923485,0.15173349,1148.1,1145.5,0.55644146]
[1761540923785,0.15173349,1148.1,1145.2,1.481]
[1761540923985,0.15173349,1148.1,1145.3,0.55641123]
[1761540924187,0.15173349,1148.1,1145.4,0.55641123]
[1761540924486,0.15173349,1148.1,1145.5,0.55641123]
[1761540924686,0.15173349,1148.1,1145.1,0.65151674]
[1761540924886,0.15173349,1148.1,1145.2,0.55638251]
[1761540925186,0.15173349,1148.1,1145.3,0.55638251]
[1761540925385,0.15173349,1148.1,1145.4,0.55638251]
[1761540925583,0.15173349,1148.1,1145.5,0.55638251]
[1761540925788,0.15173349,1148.1,1145.0,0.65151674]
[1761540925986,0.15173349,1148.1,1145.1,0.55620262]
[1761540926186,0.15173349,1148.1,1145.2,0.55620262]
[1761540926386,0.15173349,1148.1,1145.3,0.55620262]
[1761540926585,0.15173349,1148.1,1145.4,0.55620262]
[1761540926786,0.15173349,1148.1,1145.5,0.55620262]
[1761540926986,0.15173349,1148.1,1145.0,0.65151674]
[1761540927187,0.15173349,1148.1,1145.1,1.69519945]
[1761540927486,0.15173349,1148.1,1145.2,0.55619945]
[1761540927687,0.15173349,1148.1,1145.3,0.55619945]
[1761540927884,0.15173349,1148.1,1145.4,0.55619945]
[1761540928084,0.15173349,1148.1,1145.5,0.55619945]
[1761540928383,0.15173349,1148.1,1145.1,1.139]
[1761540928587,0.15173349,1148.1,1145.2,0.5562261]
[1761540928787,0.15173349,1148.1,1145.3,0.5562261]
[1761540928983,0.15173349,1148.1,1145.4,0.5562261]
[1761540929188,0.15173349,1148.1,1145.5,0.5562261]
[1761540929384,0.15173349,1148.1,1145.1,1.139]
[1761540929585,0.15173349,1148.1,1145.2,0.5562478]
[1761540929784,0.15173349,1148.1,1145.3,0.5562478]
[1761540929985,0.15173349,1148.1,1145.4,0.5562478]
[1761540930188,0.15173349,1148.1,1145.1,1.139]
[1761540931191,2.15100723,1147.7,1145.1,1.139]
[1761540932191,2.15100723,1147.3,1145.1,1.139]
[1761540932689,2.15100723,1147.4,1145.1,1.139]
[1761540934190,2.15100723,1147.5,1145.1,1.139]
[1761540934794,2.15100723,1147.2,1145.1,1.139]
[1761540935693,2.15100723,1147.3,1145.1,1.139]
[1761540937390,2.9994637,1147.7,1145.1,1.139]
[1761540937895,2.15100723,1148.0,1145.1,1.139]
[1761540940493,2.15100723,1147.8,1145.1,1.139]
[1761540940994,2.15100723,1148.0,1145.1,1.139]
[1761540941398,2.30274072,1148.1,1145.1,1.139]
[1761540943098,2.15100723,1147.5,1145.1,1.139]
[1761540943698,2.15100723,1147.6,1145.1,1.139]
[1761540943998,2.15100723,1147.7,1145.1,1.139]
[1761540945796,2.15100723,1147.9,1145.1,1.139]
[1761540947602,2.15100723,1147.9,1145.2,0.55473436]
[1761540947799,2.15100723,1147.8,1145.1,1.139]
[1761540947999,2.15100723,1147.8,1145.2,0.55473447]
[1761540948200,2.15100723,1147.8,1145.1,1.139]
[1761540948395,2.15100723,1147.8,1145.2,0.55478464]
[1761540948699,2.15100723,1147.8,1145.1,1.139]
[1761540948900,2.15100723,1147.8,1145.2,0.55498709]
[1761540949198,2.15100723,1147.8,1145.1,1.139]
[1761540949400,2.15100723,1147.8,1145.2,0.55526105]
[1761540949596,2.15100723,1147.8,1145.1,1.139]
[1761540949896,2.15100723,1147.7,1145.2,0.55526094]
[1761540950096,2.15100723,1147.7,1145.1,1.139]
[1761540950299,2.15100723,1147.7,1145.2,0.55526566]
[1761540950498,2.15100723,1147.7,1145.1,1.139]
[1761540950699,0.15173349,1148.1,1145.2,0.55558005]
[1761540950898,0.15173349,1148.1,1145.1,1.139]
[1761540951198,0.15173349,1148.1,1145.2,0.55558005]
[1761540951398,0.15173349,1148.1,1145.1,1.139]
[1761540951602,0.15173349,1148.1,1145.2,0.55590925]
[1761540951803,0.15173349,1148.1,1145.1,1.139]
[1761540952003,0.15173349,1148.1,1145.2,0.55590925]
[1761540952298,0.15173349,1148.1,1145.1,1.139]
[1761540952501,0.15173349,1148.1,1145.2,0.55593616]
[1761540952699,0.15173349,1148.1,1145.1,1.139]
[1761540952902,0.15173349,1148.1,1145.2,0.55593616]
[1761540953102,0.15173349,1148.1,1145.1,1.139]
[1761540953306,0.15173349,1148.1,1145.2,0.55593616]
[1761540953502,0.15173349,1148.1,1145.1,1.139]
[1761540956405,2.15100723,1147.8,1145.1,1.139]
[1761540957405,2.15100723,1147.9,1145.1,1.139]
[1761540960705,2.15100723,1147.8,1145.1,1.139]
[1761540961204,2.15100723,1147.7,1145.1,1.139]
[1761540965309,2.30274072,1148.1,1145.1,1.139]
[1761540965707,2.15100723,1148.0,1145.1,1.139]
[1761540966808,2.15100723,1147.9,1145.1,1.139]
[1761540968309,2.15100723,1148.0,1145.1,1.139]
[1761540970418,2.30274072,1148.1,1145.1,1.139]
[1761540971419,2.15100723,1148.0,1145.1,1.139]
[1761540972518,2.30274072,1148.1,1145.1,1.139]
[1761540973018,2.15100723,1147.9,1145.1,1.139]